bitfinex-derivatives/quotes_BTCF0:USTF0_20241103
["timestamp","ask_amount","ask_price","bid_price","bid_amount"]
[1730661030378,0.11646878,68338.0,68337.0,0.3618]
[1730661031277,0.076191,68338.0,68337.0,0.001]
[1730661031478,0.076191,68338.0,68337.0,0.11411076]
[1730661031777,0.003,68338.0,68337.0,0.18730276]
[1730661031965,0.076191,68338.0,68337.0,0.09286017]
[1730661032173,0.076191,68338.0,68337.0,0.07397646]
[1730661032374,0.076191,68338.0,68337.0,0.001]
[1730661033081,0.074191,68338.0,68337.0,0.001]
[1730661033472,0.434991,68338.0,68337.0,0.001]
[1730661033672,0.073193,68336.0,68335.0,0.00219495]
[1730661035081,0.074193,68336.0,68335.0,0.00219495]
[1730661036483,0.076193,68336.0,68335.0,0.00219495]
[1730661036873,0.074193,68336.0,68335.0,0.00219495]
[1730661037073,0.076193,68336.0,68335.0,0.00219495]
[1730661037483,0.074193,68336.0,68335.0,0.00219495]
[1730661037680,0.076193,68336.0,68335.0,0.00219495]
[1730661039181,0.076193,68336.0,68335.0,0.06152967]
[1730661040088,0.076193,68336.0,68335.0,0.00319495]
[1730661040089,0.515193,68336.0,68335.0,0.00319495]
[1730661040977,0.621633,68336.0,68335.0,0.00319495]
[1730661042889,0.621633,68336.0,68335.0,0.001]
[1730661043683,1.343233,68336.0,68335.0,0.001]
[1730661043885,1.643233,68336.0,68320.0,0.04374826]
[1730661044181,0.073213,68317.0,68314.0,0.3608]
[1730661044393,0.073217,68314.0,68307.0,0.0436903]
[1730661044579,0.3608,68315.0,68302.0,0.06052675]
[1730661044580,0.073224,68307.0,68302.0,0.06052675]
[1730661044884,0.073224,68307.0,68303.0,0.073228]
[1730661045487,0.073224,68307.0,68302.0,0.00219574]
[1730661045488,0.3608,68313.0,68302.0,0.00219574]
[1730661045677,0.073226,68306.0,68302.0,0.00219574]
[1730661046384,0.073226,68306.0,68303.0,0.01]
[1730661046778,0.073226,68306.0,68302.0,0.00219574]
[1730661046980,0.074226,68306.0,68302.0,0.02419574]
[1730661047489,0.074226,68306.0,68304.0,0.073227]
[1730661047490,0.001,68306.0,68304.0,0.073227]
[1730661048592,0.001,68306.0,68303.0,0.01]
[1730661048885,0.073227,68305.0,68303.0,0.021]
[1730661049093,0.073227,68304.0,68303.0,0.021]
[1730661049290,0.073227,68304.0,68303.0,0.01]
[1730661049984,0.073227,68304.0,68303.0,0.011]
[1730661051087,0.074227,68304.0,68303.0,0.021]
[1730661052195,0.075227,68304.0,68303.0,0.021]
[1730661053893,0.73397776,68304.0,68303.0,0.021]
[1730661054288,0.83767776,68304.0,68303.0,0.021]
[1730661055601,0.83867776,68304.0,68303.0,0.011]
[1730661055894,0.83767776,68304.0,68284.0,0.3608]
[1730661056099,0.073245,68288.0,68284.0,0.3608]
[1730661057103,0.073247,68286.0,68284.0,0.3608]
[1730661058293,0.073248,68285.0,68284.0,0.3608]
[1730661058683,0.3608,68294.0,68284.0,0.47391076]
[1730661058891,0.1067,68304.0,68290.0,0.11311076]
[1730661058892,0.073235,68297.0,68290.0,0.11311076]
[1730661059090,0.073235,68297.0,68293.0,0.073239]
[1730661059288,0.073231,68301.0,68296.0,0.073236]
[1730661059496,0.073231,68301.0,68294.0,0.0489]
[1730661059497,0.073231,68301.0,68297.0,0.073234]
[1730661059795,0.073232,68300.0,68297.0,0.073234]
[1730661060285,0.073233,68299.0,68295.0,0.1074]
[1730661060598,0.073234,68298.0,68296.0,0.003]
[1730661061995,0.073234,68298.0,68297.0,0.001]
[1730661062413,0.073234,68298.0,68296.0,0.003]
[1730661062593,0.075234,68298.0,68296.0,0.003]
[1730661062896,0.075234,68298.0,68295.0,0.180637]
[1730661063103,0.003,68298.0,68296.0,0.11311076]
[1730661063296,0.003,68298.0,68297.0,0.434035]
[1730661063793,0.00219679,68302.0,68301.0,0.07323]
[1730661064703,0.073221,68310.0,68309.0,0.073222]
[1730661065403,0.3608,68312.0,68311.0,0.07322]
[1730661065597,0.434019,68312.0,68311.0,0.07322]
[1730661065795,0.3608,68312.0,68307.0,0.434023]
[1730661066109,0.3608,68312.0,68309.0,0.005]
[1730661066110,0.073221,68310.0,68309.0,0.005]
[1730661066800,0.11311076,68310.0,68302.0,0.13142177]
[1730661066998,0.11311076,68310.0,68298.0,0.43377646]
[1730661066999,0.11311076,68310.0,68300.0,0.05819277]
[1730661067300,0.073224,68307.0,68303.0,0.073228]
[1730661067609,0.073229,68302.0,68301.0,0.06519277]
[1730661068200,0.073229,68302.0,68301.0,0.007]
[1730661068395,0.073229,68302.0,68301.0,0.05829598]
[1730661068592,0.07323,68301.0,68300.0,0.06029598]
[1730661068795,0.07323,68301.0,68300.0,0.002]
[1730661069000,0.07323,68301.0,68300.0,0.06029748]
[1730661069190,0.07323,68301.0,68300.0,0.002]
[1730661069995,0.07923,68301.0,68300.0,0.003]
[1730661070205,0.07923,68301.0,68300.0,0.05932938]
[1730661070606,0.08023,68301.0,68300.0,0.05932938]
[1730661071093,0.08523,68301.0,68300.0,0.05932938]
[1730661071502,0.08523,68301.0,68300.0,0.05938285]
[1730661071692,0.08023,68301.0,68300.0,0.05938285]
[1730661071897,0.08623,68301.0,68300.0,0.06038285]
[1730661072099,0.08423,68301.0,68300.0,0.05938285]
[1730661072307,0.011,68301.0,68300.0,0.001]
[1730661072507,0.011,68301.0,68300.0,0.23998417]
[1730661072713,0.012,68301.0,68300.0,0.167987]
[1730661073311,0.01,68301.0,68300.0,0.166987]
[1730661074100,0.01,68301.0,68300.0,0.167987]
[1730661074101,0.013,68301.0,68300.0,0.167987]
[1730661074904,0.007,68301.0,68300.0,0.169987]
[1730661076009,0.007,68301.0,68300.0,0.33194711]
[1730661076212,0.3608,68313.0,68300.0,0.77018711]
[1730661076410,0.073219,68312.0,68310.0,0.07322]
[1730661076606,0.3608,68313.0,68310.0,0.07322]
[1730661076802,0.07322,68311.0,68310.0,0.07322]
[1730661077430,0.073221,68310.0,68309.0,0.07304151]
[1730661078505,0.10644,68320.0,68311.0,0.073219]
[1730661078699,0.0523,68322.0,68314.0,0.05842327]
[1730661078903,0.073208,68322.0,68315.0,0.073215]
[1730661079104,0.3608,68327.0,68315.0,0.073215]
[1730661079105,0.073213,68318.0,68315.0,0.073215]
[1730661080303,0.073208,68322.0,68315.0,0.073215]
[1730661080511,0.00419621,68316.0,68315.0,0.53009074]
[1730661081104,0.07541021,68316.0,68315.0,0.52609074]
[1730661081305,0.07541021,68316.0,68315.0,0.46187574]
[1730661081513,0.07541021,68316.0,68315.0,0.3698]
[1730661081906,0.07541021,68316.0,68315.0,0.46188877]
[1730661082120,0.00219621,68316.0,68315.0,0.608073]
[1730661082316,0.00219621,68316.0,68315.0,0.51598458]
[1730661082509,0.00219621,68316.0,68315.0,0.6077706]
[1730661082818,0.00219621,68316.0,68315.0,0.534815]
[1730661083317,0.00219621,68316.0,68315.0,0.60575244]
[1730661083515,0.00219621,68316.0,68315.0,0.60475244]
[1730661083908,0.00219621,68316.0,68315.0,0.60675224]
[1730661084108,0.00219621,68316.0,68315.0,0.533815]
[1730661084316,0.00219621,68316.0,68315.0,0.51594356]
[1730661084504,0.073214,68316.0,68315.0,0.441015]
[1730661085820,0.073214,68316.0,68315.0,0.440015]
[1730661086319,0.073214,68316.0,68315.0,0.3668]
[1730661086517,0.073214,68316.0,68315.0,0.3628]
[1730661086818,0.073214,68316.0,68315.0,0.3658]
[1730661087217,0.073214,68316.0,68315.0,0.3628]
[1730661087415,0.073214,68316.0,68315.0,0.3658]
[1730661087923,0.073214,68316.0,68315.0,0.3648]
[1730661088218,0.073214,68316.0,68315.0,0.004]
[1730661088422,0.073214,68316.0,68315.0,0.003]
[1730661088622,0.078214,68316.0,68315.0,0.003]
[1730661088822,0.005,68316.0,68312.0,0.07292856]
[1730661089020,0.073217,68314.0,68312.0,0.07292856]
[1730661089223,0.073217,68314.0,68313.0,0.07292856]
[1730661089521,0.01,68316.0,68310.0,0.073221]
[1730661089522,0.073218,68313.0,68310.0,0.073221]
[1730661089728,0.073218,68313.0,68311.0,0.09216097]
[1730661089909,0.073218,68313.0,68312.0,0.09216097]
[1730661090428,0.073218,68313.0,68312.0,0.16519033]
[1730661090820,0.074218,68313.0,68312.0,0.16519033]
[1730661091323,0.073218,68313.0,68312.0,0.16519033]
[1730661091619,0.073218,68313.0,68312.0,0.092182]
[1730661091620,0.075218,68313.0,68312.0,0.092182]
[1730661091819,0.075218,68313.0,68312.0,0.16527275]
[1730661092212,0.073219,68312.0,68311.0,0.07302227]
[1730661092423,0.122619,68312.0,68311.0,0.16530346]
[1730661093709,0.127619,68312.0,68311.0,0.16530346]
[1730661094216,0.073226,68305.0,68304.0,0.07303477]
[1730661094420,0.073226,68305.0,68299.0,0.08864982]
[1730661094421,0.073229,68302.0,68301.0,0.07303477]
[1730661094720,0.101,68304.0,68298.0,0.07303477]
[1730661094921,0.073234,68298.0,68297.0,0.07303477]
[1730661095123,0.073234,68298.0,68297.0,0.16580463]
[1730661095318,0.073234,68298.0,68296.0,0.07303477]
[1730661095520,0.122535,68297.0,68296.0,0.07303477]
[1730661095717,0.073236,68296.0,68295.0,0.07303477]
[1730661096129,0.073236,68296.0,68293.0,0.07303477]
[1730661096419,0.073236,68296.0,68294.0,0.07303477]
[1730661096609,0.073236,68296.0,68293.0,0.07303477]
[1730661096814,0.0493,68297.0,68293.0,0.07303477]
[1730661096815,0.073238,68294.0,68293.0,0.07303477]
[1730661097020,0.0493,68297.0,68286.0,0.08764982]
[1730661097021,0.07324,68292.0,68291.0,0.07303477]
[1730661097319,0.073236,68296.0,68295.0,0.001]
[1730661098522,0.07324,68292.0,68291.0,0.06241053]
[1730661098729,0.073236,68296.0,68291.0,0.004]
[1730661099021,0.073237,68295.0,68293.0,0.05839319]
[1730661099530,0.073237,68295.0,68292.0,0.05839319]
[1730661100427,0.073237,68295.0,68293.0,0.002]
[1730661100622,0.0493,68297.0,68293.0,0.002]
[1730661100814,0.0493,68297.0,68293.0,0.073239]
[1730661101123,0.3608,68299.0,68298.0,0.073234]
[1730661101521,0.3608,68299.0,68298.0,0.13160374]
[1730661102822,0.3608,68299.0,68298.0,0.077234]
[1730661103027,0.3608,68312.0,68308.0,0.073223]
[1730661104323,0.3608,68312.0,68308.0,0.074223]
[1730661104324,0.00919671,68309.0,68308.0,0.074223]
[1730661105028,0.00919671,68309.0,68308.0,0.13258521]
[1730661105232,0.01519671,68309.0,68308.0,0.074223]
[1730661105627,0.01519671,68309.0,68308.0,0.13258521]
[1730661105830,0.00219671,68309.0,68308.0,0.05836221]
[1730661106029,0.07541871,68309.0,68308.0,0.005]
[1730661106529,0.07541871,68309.0,68308.0,0.003]
[1730661107618,0.07541871,68309.0,68308.0,0.002]
[1730661109029,0.00219671,68309.0,68306.0,0.05836221]
[1730661109230,0.073224,68307.0,68306.0,0.05836221]
[1730661110329,0.073224,68307.0,68304.0,0.3608]
[1730661110525,0.077224,68307.0,68306.0,0.05836868]
[1730661110730,0.077224,68307.0,68306.0,0.05836886]
[1730661111028,0.077224,68307.0,68304.0,0.3608]
[1730661111422,0.004,68307.0,68306.0,0.073225]
[1730661111735,0.073226,68305.0,68304.0,0.3608]
[1730661113034,0.073226,68305.0,68304.0,0.3628]
[1730661113223,0.0472,68306.0,68305.0,0.073226]
[1730661113529,0.07541871,68309.0,68305.0,0.073226]
[1730661113735,0.07541871,68309.0,68308.0,0.05839051]
[1730661114530,0.07541871,68309.0,68305.0,0.073226]
[1730661115225,0.07841871,68309.0,68305.0,0.073226]
[1730661115932,0.00219671,68309.0,68308.0,0.073223]
[1730661116341,0.00619671,68309.0,68308.0,0.073223]
[1730661116842,0.00319671,68309.0,68308.0,0.073223]
[1730661117633,0.00619671,68309.0,68308.0,0.073223]
[1730661119131,0.00919671,68309.0,68308.0,0.073223]
[1730661119337,0.08241871,68309.0,68308.0,0.073223]
[1730661119731,0.08241871,68309.0,68307.0,0.07295276]
[1730661119732,0.00919671,68309.0,68307.0,0.07295276]
[1730661119940,0.073223,68308.0,68307.0,0.07295276]
[1730661120129,0.00919671,68309.0,68306.0,0.07295276]
[1730661120434,0.073224,68307.0,68306.0,0.07305406]
[1730661120635,0.073224,68307.0,68306.0,0.16495618]
[1730661120831,0.073226,68305.0,68304.0,0.43385411]
[1730661121333,0.003,68308.0,68307.0,0.073224]
[1730661121535,0.003,68308.0,68307.0,0.16517174]
[1730661122031,0.003,68308.0,68307.0,0.2382329]
[1730661122238,0.003,68308.0,68307.0,0.16517174]
[1730661123142,0.002,68308.0,68307.0,0.27439771]
[1730661123436,0.002,68308.0,68307.0,0.71359771]
[1730661123632,0.00219671,68309.0,68308.0,0.073223]
[1730661123828,0.00219671,68309.0,68308.0,0.32419671]
[1730661124436,0.073215,68316.0,68308.0,0.25097371]
[1730661124643,0.073215,68316.0,68315.0,0.14625484]
[1730661124836,0.073215,68316.0,68315.0,0.23820258]
[1730661125031,0.073215,68316.0,68315.0,0.14625484]
[1730661125341,0.073215,68316.0,68315.0,0.073215]
[1730661126239,0.080215,68316.0,68315.0,0.074215]
[1730661127035,0.080215,68316.0,68315.0,0.075215]
[1730661127036,0.016,68316.0,68315.0,0.075215]
[1730661127642,0.016,68316.0,68315.0,0.14825484]
[1730661127842,0.016,68316.0,68315.0,0.075215]
[1730661128037,0.016,68316.0,68315.0,0.14825484]
[1730661128341,0.016,68316.0,68315.0,0.23955865]
[1730661129444,0.016,68316.0,68315.0,0.075215]
[1730661132146,0.016,68316.0,68315.0,0.002]
[1730661132349,0.089214,68316.0,68315.0,0.002]
[1730661136455,0.089214,68316.0,68315.0,0.0604615]
[1730661137660,0.089214,68316.0,68315.0,0.06050652]
[1730661139244,0.089214,68316.0,68315.0,0.002]
[1730661142053,0.016,68316.0,68315.0,0.075215]
[1730661142757,0.016,68316.0,68315.0,0.14825484]
[1730661142960,0.016,68316.0,68315.0,0.075215]
[1730661143162,0.016,68316.0,68315.0,0.002]
[1730661143356,0.089214,68316.0,68315.0,0.002]
[1730661144562,0.13008135,68316.0,68315.0,0.002]
[1730661146466,0.05686735,68316.0,68315.0,0.075215]
[1730661146759,0.13008135,68316.0,68315.0,0.002]
[1730661147764,0.05686735,68316.0,68315.0,0.075215]
[1730661150160,0.13008135,68316.0,68315.0,0.075215]
[1730661150563,0.129967,68316.0,68315.0,0.075215]
[1730661151468,0.089214,68316.0,68315.0,0.075215]
[1730661151674,0.089214,68316.0,68315.0,0.14825484]
[1730661151865,0.089214,68316.0,68315.0,0.075215]
[1730661153073,0.016,68316.0,68315.0,0.075215]
[1730661153373,0.016,68316.0,68315.0,0.1669696]
[1730661153560,0.016,68316.0,68315.0,0.16692496]
[1730661157072,0.016,68316.0,68315.0,0.25457277]
[1730661157465,0.016,68316.0,68315.0,0.16692496]
[1730661157775,0.016,68316.0,68315.0,0.25457277]
[1730661157976,0.016,68316.0,68315.0,0.25432694]
[1730661159474,0.016,68316.0,68315.0,0.16667913]
[1730661161367,0.089214,68316.0,68315.0,0.002]
[1730661161871,0.089214,68316.0,68315.0,0.0605371]
[1730661164477,0.089214,68316.0,68315.0,0.002]
[1730661164977,0.528334,68316.0,68315.0,0.002]
[1730661166173,0.089214,68316.0,68315.0,0.002]
[1730661166476,0.13085738,68316.0,68315.0,0.002]
[1730661167488,0.61827752,68316.0,68315.0,0.002]
[1730661170079,0.56997738,68316.0,68315.0,0.002]
[1730661170487,0.61840767,68316.0,68315.0,0.002]
[1730661170675,0.77140767,68316.0,68315.0,0.002]
[1730661170875,0.87768767,68316.0,68315.0,0.002]
[1730661172190,0.87772767,68316.0,68315.0,0.002]
[1730661173482,0.787654,68316.0,68315.0,0.002]
[1730661174385,1.148454,68316.0,68315.0,0.002]
[1730661174585,0.07322,68311.0,68306.0,0.04388769]
[1730661174884,0.11311076,68306.0,68299.0,0.0585371]
[1730661175185,0.073235,68297.0,68296.0,0.0585371]
[1730661175484,0.073235,68297.0,68284.0,0.073249]
[1730661175485,0.073237,68295.0,68293.0,0.05848915]
[1730661175686,0.434038,68294.0,68293.0,0.05848915]
[1730661175990,0.073242,68291.0,68289.0,0.07316272]
[1730661176386,0.073242,68291.0,68288.0,0.07316272]
[1730661177384,0.073242,68291.0,68284.0,0.073249]
[1730661177385,0.073242,68291.0,68287.0,0.07316272]
[1730661177986,0.074242,68291.0,68288.0,0.013]
[1730661178387,0.074242,68291.0,68290.0,0.05841497]
[1730661178587,0.075242,68291.0,68290.0,0.05841497]
[1730661178785,0.075242,68291.0,68290.0,0.05841394]
[1730661178984,0.074242,68291.0,68289.0,0.012]
[1730661179187,0.075242,68291.0,68290.0,0.05841409]
[1730661179587,0.075242,68291.0,68290.0,0.05839887]
[1730661179885,0.002,68291.0,68290.0,0.073242]
[1730661180086,0.001,68291.0,68290.0,0.23672504]
[1730661180288,0.002,68291.0,68290.0,0.14640472]
[1730661180488,0.002,68291.0,68290.0,0.1635425]
[1730661181088,0.002,68291.0,68290.0,0.1745425]
[1730661181789,0.002,68291.0,68290.0,0.084242]
[1730661182497,0.002,68291.0,68290.0,0.11737906]
[1730661182893,0.001,68291.0,68290.0,0.11737906]
[1730661183087,0.002,68291.0,68290.0,0.18676556]
[1730661183288,0.002,68291.0,68290.0,0.12837906]
[1730661183693,0.002,68291.0,68290.0,0.56765906]
[1730661185491,0.073228,68303.0,68302.0,0.073229]
[1730661187401,0.00219684,68309.0,68297.0,0.36176]
[1730661187402,0.073234,68298.0,68297.0,0.36176]
[1730661187586,0.18634476,68298.0,68297.0,0.3608]
[1730661188189,0.073234,68298.0,68297.0,0.3608]
[1730661188395,0.0496,68302.0,68297.0,0.434035]
[1730661188601,0.073229,68302.0,68300.0,0.073232]
[1730661188793,0.073225,68307.0,68300.0,0.05838653]
[1730661188993,0.073225,68307.0,68303.0,0.3608]
[1730661189194,0.073225,68307.0,68303.0,0.41918653]
[1730661189395,0.073225,68307.0,68304.0,0.13161353]
[1730661189696,0.073225,68307.0,68303.0,0.3608]
[1730661189697,0.07541884,68309.0,68307.0,0.073224]
[1730661191097,0.07541884,68309.0,68305.0,0.05838653]
[1730661191294,0.07541884,68309.0,68306.0,0.05838653]
[1730661192096,0.073224,68308.0,68306.0,0.05838653]
[1730661192301,0.00819684,68309.0,68306.0,0.05838653]
[1730661192302,0.18633476,68307.0,68306.0,0.05838653]
[1730661192491,0.18633476,68307.0,68304.0,0.05838653]
[1730661192696,0.18633476,68307.0,68303.0,0.05838653]
[1730661193400,0.073225,68306.0,68304.0,0.05838653]
[1730661193595,0.16121076,68307.0,68304.0,0.05838653]
[1730661193799,0.073226,68305.0,68304.0,0.05838653]
[1730661193998,0.073226,68305.0,68303.0,0.05838653]
[1730661194303,0.073226,68305.0,68304.0,0.05838653]
[1730661195005,0.073226,68305.0,68303.0,0.05838653]
[1730661195304,0.075226,68305.0,68304.0,0.05838653]
[1730661195705,0.002,68305.0,68303.0,0.05838653]
[1730661195910,0.073227,68304.0,68303.0,0.05838653]
[1730661196901,0.003,68305.0,68302.0,0.073229]
[1730661197104,0.003,68305.0,68304.0,0.05847303]
[1730661197303,0.004,68305.0,68304.0,0.05847303]
[1730661197511,0.004,68305.0,68302.0,0.073229]
[1730661197897,0.002,68304.0,68302.0,0.073229]
[1730661198399,0.15545491,68307.0,68302.0,0.073229]
[1730661198611,0.001,68304.0,68302.0,0.073229]
[1730661198905,0.001,68304.0,68303.0,0.073228]
[1730661199112,0.002,68304.0,68303.0,0.073228]
[1730661199412,0.001,68304.0,68303.0,0.073228]
[1730661199598,0.001,68304.0,68303.0,0.14621112]
[1730661200110,0.002,68304.0,68303.0,0.14621112]
[1730661200609,0.003,68304.0,68303.0,0.14621112]
[1730661200802,0.003,68304.0,68303.0,0.073228]
[1730661201007,0.003,68304.0,68303.0,0.16328224]
[1730661201503,0.003,68304.0,68303.0,0.28512148]
[1730661202816,0.003,68304.0,68303.0,0.197327]
[1730661203604,0.003,68304.0,68303.0,0.10746292]
[1730661205312,0.003,68304.0,68303.0,0.65977368]
[1730661206414,0.073209,68321.0,68303.0,0.58654568]
[1730661206606,0.073209,68321.0,68320.0,0.07321]
[1730661207713,0.082209,68321.0,68320.0,0.07421]
[1730661207900,0.009,68321.0,68320.0,0.07421]
[1730661209206,0.013,68321.0,68320.0,0.07521]
[1730661211715,0.65400049,68321.0,68316.0,0.31880712]
[1730661212319,0.50194525,68321.0,68317.0,0.13751883]
[1730661212620,0.29911155,68320.0,68317.0,0.04957664]
[1730661213523,0.14706804,68320.0,68317.0,0.04957664]
[1730661213818,0.15506804,68320.0,68319.0,0.073211]
[1730661214220,0.22827804,68320.0,68319.0,0.073211]
[1730661214416,0.23327804,68320.0,68319.0,0.073211]
[1730661214920,0.23327804,68320.0,68319.0,0.074211]
[1730661215318,0.16106804,68320.0,68319.0,0.075211]
[1730661219214,0.014,68320.0,68319.0,0.075211]
[1730661219817,0.014,68320.0,68319.0,0.002]
[1730661220112,0.63944076,68320.0,68308.0,0.073222]
[1730661220320,0.11311076,68313.0,68308.0,0.073222]
[1730661220514,0.07322,68311.0,68308.0,0.073222]
[1730661220716,0.0484,68312.0,68310.0,0.073221]
[1730661220717,0.0984,68312.0,68310.0,0.073221]
[1730661220907,0.05,68312.0,68311.0,0.07322]
[1730661221103,0.3608,68315.0,68314.0,0.073217]
[1730661221510,0.012,68320.0,68310.0,0.11311076]
[1730661221709,0.012,68320.0,68319.0,0.073211]
[1730661222119,0.008,68320.0,68319.0,0.073211]
[1730661222911,0.0484,68326.0,68315.0,0.3608]
[1730661223110,0.073208,68322.0,68320.0,0.07321]
[1730661224018,0.073208,68322.0,68321.0,0.073209]
[1730661224317,0.083208,68322.0,68321.0,0.073209]
[1730661224523,0.090208,68322.0,68321.0,0.073209]
[1730661226623,0.080208,68322.0,68321.0,0.073209]
[1730661226819,0.088208,68322.0,68321.0,0.075209]
[1730661227924,0.088208,68322.0,68321.0,0.002]
[1730661228112,0.449008,68322.0,68321.0,0.06044193]
[1730661228323,0.449008,68322.0,68321.0,0.002]
[1730661230319,0.449008,68322.0,68321.0,0.06044193]
[1730661230520,0.449008,68322.0,68321.0,0.002]
[1730661231115,0.449008,68322.0,68321.0,0.06044193]
[1730661232413,0.449008,68322.0,68321.0,0.002]
[1730661234632,0.12957993,68322.0,68321.0,0.002]
[1730661235230,0.05637193,68322.0,68321.0,0.075209]
[1730661239827,0.015,68322.0,68321.0,0.075209]
[1730661240827,0.015,68322.0,68321.0,0.436009]
[1730661241531,0.015,68322.0,68321.0,0.54911976]
[1730661241736,0.015,68322.0,68321.0,0.875129]
[1730661242546,0.015,68322.0,68321.0,1.30245208]
[1730661242726,0.015,68322.0,68321.0,1.30251642]
[1730661242927,0.015,68322.0,68321.0,0.73766002]
[1730661243131,0.015,68322.0,68321.0,0.63515975]
[1730661243434,0.00219591,68335.0,68321.0,0.63515975]
[1730661243435,0.00219591,68335.0,68334.0,0.073195]
[1730661243736,0.00219591,68335.0,68334.0,0.16387618]
[1730661244240,0.00219591,68335.0,68334.0,0.60287618]
[1730661244633,0.3608,68349.0,68348.0,0.07318]
[1730661245236,0.3608,68349.0,68348.0,0.18629076]
[1730661245535,0.3608,68349.0,68348.0,0.07318]
[1730661246131,0.3608,68349.0,68348.0,0.13161476]
[1730661246331,0.3608,68349.0,68348.0,0.07318]
[1730661246737,0.3608,68349.0,68348.0,0.07518]
[1730661246938,0.2116,68349.0,68348.0,0.62721076]
[1730661247140,0.073161,68366.0,68364.0,0.073163]
[1730661247332,0.073161,68366.0,68365.0,0.073162]
[1730661247531,0.21091076,68376.0,68367.0,0.073159]
[1730661247738,0.073159,68368.0,68367.0,0.073159]
[1730661248240,0.0485,68370.0,68368.0,0.073159]
[1730661249330,0.0485,68370.0,68368.0,0.074159]
[1730661249938,0.03297566,68371.0,68368.0,0.074159]
[1730661250446,0.03297566,68371.0,68368.0,0.075159]
[1730661250746,0.073155,68372.0,68368.0,0.075159]
[1730661251538,0.0978,68376.0,68368.0,0.075159]
[1730661251845,0.0978,68376.0,68368.0,0.18826976]
[1730661251846,0.0482,68376.0,68368.0,0.18826976]
[1730661252041,0.073145,68381.0,68368.0,0.18826976]
[1730661253044,0.073146,68380.0,68368.0,0.18826976]
[1730661253436,0.073146,68380.0,68376.0,0.073149]
[1730661253744,0.073146,68380.0,68368.0,0.18826976]
[1730661253939,0.073146,68380.0,68376.0,0.073149]
[1730661254143,0.08207398,68383.0,68376.0,0.073149]
[1730661254351,0.073147,68379.0,68376.0,0.073149]
[1730661254537,0.073147,68379.0,68376.0,0.002]
[1730661254737,0.073147,68379.0,68376.0,0.075149]
[1730661254938,0.073149,68377.0,68376.0,0.075149]
[1730661256044,0.073149,68377.0,68376.0,0.074149]
[1730661256248,0.073149,68377.0,68376.0,0.075149]
[1730661256444,0.22479335,68377.0,68372.0,0.15780399]
[1730661256645,0.21972108,68376.0,68372.0,0.15780399]
[1730661256945,0.21972108,68375.0,68374.0,0.073152]
[1730661257138,0.15164435,68375.0,68374.0,0.073152]
[1730661257641,0.15164435,68375.0,68372.0,0.001]
[1730661257944,0.15164435,68374.0,68373.0,0.073153]
[1730661258843,0.15164435,68374.0,68373.0,0.18626376]
[1730661259248,0.15164435,68374.0,68373.0,0.18726376]
[1730661259451,0.15164435,68374.0,68373.0,0.62702376]
[1730661259452,0.15264435,68374.0,68373.0,0.62702376]
[1730661260150,0.13837354,68374.0,68373.0,0.62702376]
[1730661260646,0.13737354,68374.0,68373.0,0.62602376]
[1730661260845,0.13937354,68374.0,68373.0,0.62702376]
[1730661261239,0.13937354,68374.0,68373.0,0.18826376]
[1730661263149,0.13937354,68374.0,68373.0,0.62702376]
[1730661263540,0.13937354,68374.0,68373.0,0.39282011]
[1730661263740,0.13937354,68374.0,68373.0,0.57908387]
[1730661264436,0.3608,68387.0,68373.0,0.53975024]
[1730661264645,0.073131,68394.0,68392.0,0.073133]
[1730661264843,0.3608,68395.0,68392.0,0.073133]
[1730661265144,0.04813415,68393.0,68392.0,0.073133]
[1730661266043,0.04813415,68393.0,68392.0,0.074133]
[1730661267352,0.00219426,68393.0,68392.0,0.074133]
[1730661267853,0.07532626,68393.0,68392.0,0.074133]
[1730661268049,0.07632626,68393.0,68392.0,0.075133]
[1730661269254,0.00319426,68393.0,68392.0,0.075133]
[1730661269550,0.00319426,68393.0,68392.0,0.002]
[1730661269551,0.12226615,68393.0,68392.0,0.002]
[1730661270152,0.12226615,68393.0,68381.0,0.073144]
[1730661270153,0.04913415,68393.0,68381.0,0.073144]
[1730661270354,0.04913415,68393.0,68376.0,0.07315]
[1730661270355,0.11908189,68384.0,68376.0,0.07315]
[1730661270654,0.04593989,68378.0,68371.0,0.10596]
[1730661270850,0.11908789,68378.0,68376.0,0.07315]
[1730661271047,0.073148,68378.0,68376.0,0.07315]
[1730661271351,0.11908889,68377.0,68376.0,0.07315]
[1730661272456,0.3608,68381.0,68380.0,0.073146]
[1730661274350,0.3618,68381.0,68380.0,0.073146]
[1730661274761,0.3628,68381.0,68380.0,0.073146]
[1730661275060,0.435945,68381.0,68380.0,0.073146]
[1730661275358,0.435945,68381.0,68380.0,0.10729236]
[1730661275359,0.434945,68381.0,68380.0,0.10729236]
[1730661275555,0.434945,68381.0,68380.0,0.10829236]
[1730661275945,0.433945,68381.0,68380.0,0.10829236]
[1730661276149,0.433945,68381.0,68380.0,0.10929236]
[1730661276861,0.073151,68376.0,68373.0,0.073153]
[1730661277048,0.04593989,68373.0,68366.0,0.11311076]
[1730661277243,0.0382045,68372.0,68366.0,0.11311076]
[1730661277453,0.0382045,68371.0,68366.0,0.11311076]
[1730661277646,0.0495,68372.0,68371.0,0.073156]
[1730661277850,0.0876329,68372.0,68371.0,0.18626676]
[1730661278055,0.08763275,68372.0,68371.0,0.18626676]
[1730661279053,0.08763275,68372.0,68371.0,0.19526676]
[1730661279456,0.0495,68372.0,68371.0,0.28297227]
[1730661279646,0.0495,68372.0,68371.0,0.37659125]
[1730661279962,0.0495,68372.0,68371.0,0.38659125]
[1730661281352,0.00758897,68372.0,68371.0,0.29888574]
[1730661282155,0.05352886,68372.0,68371.0,0.29888574]
[1730661282356,0.05352886,68372.0,68371.0,0.38639147]
[1730661282557,0.12668286,68372.0,68371.0,0.19987335]
[1730661282753,0.12668286,68372.0,68371.0,0.11236762]